bitfinex/quotes_BTCUSD_20230114
["timestamp","ask_amount","ask_price","bid_price","bid_amount"]
[1673732996149,1.36522625,20907.0,20906.0,0.006]
[1673732996653,1.50795874,20907.0,20906.0,0.006]
[1673732996898,1.50807548,20907.0,20906.0,0.006]
[1673732997143,1.36534299,20907.0,20906.0,0.006]
[1673732997918,0.40872699,20907.0,20906.0,0.006]
[1673732999646,0.40861025,20907.0,20906.0,0.006]
[1673733000154,0.119,20907.0,20906.0,0.971162]
[1673733000404,0.119,20907.0,20906.0,0.80658628]
[1673733000656,0.119,20907.0,20906.0,0.006]
[1673733001434,0.38552077,20907.0,20906.0,0.006]
[1673733001686,0.86382877,20907.0,20906.0,0.005349]
[1673733002954,0.38552077,20907.0,20906.0,0.005349]
[1673733004226,0.38563751,20907.0,20906.0,0.005349]
[1673733004470,0.38552077,20907.0,20906.0,0.005349]
[1673733004726,0.52825326,20907.0,20906.0,0.005349]
[1673733004981,0.64275326,20907.0,20906.0,0.005349]
[1673733005234,0.85816602,20907.0,20906.0,0.005349]
[1673733005484,1.33647402,20907.0,20906.0,0.005349]
[1673733005983,1.121178,20907.0,20906.0,0.005349]
[1673733006468,1.33647402,20907.0,20906.0,0.005349]
[1673733006733,1.65629502,20907.0,20906.0,0.005349]
[1673733006988,3.05464542,20907.0,20906.0,0.005349]
[1673733007259,3.02480786,20907.0,20906.0,0.005349]
[1673733009013,2.66600431,20907.0,20906.0,0.005349]
[1673733009273,3.02407298,20907.0,20906.0,0.005349]
[1673733009493,2.66600431,20907.0,20906.0,0.005349]
[1673733011254,3.09518506,20907.0,20906.0,0.005349]
[1673733011493,2.66600431,20907.0,20906.0,0.005349]
[1673733011750,3.32036139,20907.0,20906.0,0.005349]
[1673733011999,3.20616139,20907.0,20906.0,0.005349]
[1673733012489,3.49255988,20907.0,20906.0,0.005349]
[1673733013218,3.20616139,20907.0,20906.0,0.005349]
[1673733016507,2.87398656,20907.0,20906.0,0.005349]
[1673733017006,2.51598431,20907.0,20906.0,0.005349]
[1673733017491,2.87396106,20907.0,20906.0,0.005349]
[1673733017747,3.20054837,20907.0,20906.0,0.005349]
[1673733018249,2.90978106,20907.0,20906.0,0.005349]
[1673733019003,2.90978061,20907.0,20906.0,0.005349]
[1673733019760,3.23354572,20907.0,20906.0,0.005349]
[1673733020498,2.55180431,20907.0,20906.0,0.005349]
[1673733020991,2.83398218,20907.0,20906.0,0.005349]
[1673733021233,2.55180431,20907.0,20906.0,0.005349]
[1673733021473,3.21377241,20907.0,20906.0,0.005349]
[1673733021712,2.90973406,20907.0,20906.0,0.005349]
[1673733021972,3.18282289,20907.0,20906.0,0.005349]
[1673733022226,2.90973406,20907.0,20906.0,0.005349]
[1673733022489,2.55180431,20907.0,20906.0,0.005349]
[1673733022738,3.18977951,20907.0,20906.0,0.005349]
[1673733023983,2.9097345,20907.0,20906.0,0.005349]
[1673733025013,3.14682055,20907.0,20906.0,0.005349]
[1673733025265,2.9097345,20907.0,20906.0,0.005349]
[1673733025503,3.20800343,20907.0,20906.0,0.005349]
[1673733026004,2.9097345,20907.0,20906.0,0.005349]
[1673733026251,2.9097345,20907.0,20906.0,0.00526085]
[1673733027015,3.22985336,20907.0,20906.0,0.00526085]
[1673733027266,3.20812391,20907.0,20906.0,0.00526085]
[1673733030109,2.85019372,20907.0,20906.0,0.00526085]
[1673733030567,2.55180431,20907.0,20906.0,0.00473477]
[1673733031911,2.83692821,20907.0,20906.0,0.00473477]
[1673733032145,2.55180431,20907.0,20906.0,0.00473477]
[1673733032617,2.56666726,20907.0,20906.0,0.00473477]
[1673733033127,2.8060865,20907.0,20906.0,0.00473477]
[1673733033355,2.56666726,20907.0,20906.0,0.00473477]
[1673733033551,2.86354796,20907.0,20906.0,0.00473477]
[1673733034318,2.56666726,20907.0,20906.0,0.00473477]
[1673733034743,2.87126068,20907.0,20906.0,0.00473477]
[1673733034969,2.56666726,20907.0,20906.0,0.00473477]
[1673733035230,2.83390288,20907.0,20906.0,0.00473477]
[1673733035455,3.26308363,20907.0,20906.0,0.00473477]
[1673733035696,2.83390288,20907.0,20906.0,0.00473477]
[1673733038089,3.26308363,20907.0,20906.0,0.00473477]
[1673733038329,2.99584801,20907.0,20906.0,0.00473477]
[1673733038558,3.09584801,20907.0,20906.0,0.00473477]
[1673733038792,2.56666726,20907.0,20906.0,0.00473477]
[1673733039444,2.81907576,20907.0,20906.0,0.00473477]
[1673733041202,2.91907576,20907.0,20906.0,0.00473477]
[1673733041452,2.86903009,20907.0,20906.0,0.00473477]
[1673733042190,2.83321009,20907.0,20906.0,0.00473477]
[1673733042436,2.86903009,20907.0,20906.0,0.00473477]
[1673733042941,2.75513009,20907.0,20906.0,0.00473477]
[1673733043972,3.00938757,20907.0,20906.0,0.00473477]
[1673733044226,2.75513009,20907.0,20906.0,0.00473477]
[1673733044488,3.02700374,20907.0,20906.0,0.00473477]
[1673733044736,3.1689382,20907.0,20906.0,0.00473477]
[1673733045493,0.1,20906.0,20904.0,0.3417094]
[1673733045743,1.63882361,20905.0,20904.0,0.08312031]
[1673733046447,1.42900061,20905.0,20904.0,0.08312031]
[1673733046694,1.74882161,20905.0,20904.0,0.08312031]
[1673733046938,1.63882361,20905.0,20904.0,0.08312031]
[1673733047179,1.58025357,20905.0,20904.0,0.08312031]
[1673733047421,1.60325357,20905.0,20904.0,0.08712031]
[1673733047669,1.87178457,20905.0,20904.0,0.08712031]
[1673733047910,2.46944548,20905.0,20904.0,0.08712031]
[1673733048158,2.35956422,20905.0,20904.0,0.08712031]
[1673733048642,2.46956222,20905.0,20904.0,0.08712031]
[1673733048890,2.35956422,20905.0,20904.0,0.08712031]
[1673733049138,2.46956222,20905.0,20904.0,0.08712031]
[1673733049946,2.93554518,20905.0,20904.0,0.08712031]
[1673733050209,3.41657234,20905.0,20904.0,0.08712031]
[1673733050452,3.35104498,20905.0,20904.0,0.08712031]
[1673733050711,3.45104498,20905.0,20904.0,0.08712031]
[1673733051141,3.35104498,20905.0,20904.0,0.08712031]
[1673733051403,3.83488459,20905.0,20904.0,0.08712031]
[1673733051929,3.81188459,20905.0,20904.0,0.08312031]
[1673733052214,3.93688459,20905.0,20904.0,0.08812031]
[1673733052431,3.55304498,20905.0,20904.0,0.08812031]
[1673733052675,4.02714715,20905.0,20904.0,0.08812031]
[1673733053220,3.90214715,20905.0,20904.0,0.08312031]
[1673733053476,3.94861401,20905.0,20904.0,0.08712031]
[1673733054480,3.46504498,20905.0,20904.0,0.08712031]
[1673733055241,3.56504498,20905.0,20904.0,0.08712031]
[1673733055487,3.46504498,20905.0,20904.0,0.08712031]
[1673733055734,3.94861401,20905.0,20904.0,0.08712031]
[1673733056253,3.46504498,20905.0,20904.0,0.08712031]
[1673733056485,3.56504498,20905.0,20904.0,0.08712031]
[1673733057227,3.56504498,20905.0,20904.0,0.004]
[1673733057474,3.46504498,20905.0,20904.0,0.004]
[1673733057725,3.42922498,20905.0,20904.0,0.004]
[1673733057986,3.94861401,20905.0,20904.0,0.004]
[1673733058817,4.64861402,20905.0,20904.0,0.004]
[1673733059339,5.12271619,20905.0,20904.0,0.004]
[1673733060106,5.12264321,20905.0,20904.0,0.004]
[1673733060363,5.12264321,20905.0,20904.0,0.00259715]
[1673733060609,5.12264321,20905.0,20904.0,0.00054498]
[1673733060610,4.63907418,20905.0,20904.0,0.00054498]
[1673733063563,4.63907418,20905.0,20904.0,9.8e-07]
[1673733063815,4.63907418,20905.0,20897.0,0.62003178]
[1673733064082,4.63907418,20905.0,20894.0,0.00869691]
[1673733064083,0.47830394,20898.0,20894.0,0.00869691]
[1673733064339,0.14314016,20895.0,20894.0,0.00369691]
[1673733064586,2.00342239,20895.0,20894.0,0.00369691]
[1673733064826,1.78871216,20895.0,20894.0,0.30737323]
[1673733065090,1.10030616,20895.0,20894.0,0.30737323]
[1673733065336,1.42012716,20895.0,20894.0,0.30737323]
[1673733065831,1.93483739,20895.0,20894.0,0.30737323]
[1673733066079,1.93483739,20895.0,20893.0,0.6063]
[1673733066080,1.79169723,20895.0,20893.0,0.6063]
[1673733066327,0.65297099,20894.0,20893.0,0.6063]
[1673733066579,0.50108095,20894.0,20893.0,0.6063]
[1673733066821,0.97968695,20894.0,20893.0,0.6063]
[1673733067070,1.15865494,20894.0,20893.0,0.6063]
[1673733067834,1.16477168,20894.0,20893.0,0.6063]
[1673733068081,1.16477168,20894.0,20892.0,0.00813736]
[1673733068327,0.434021,20893.0,20892.0,0.00813736]
[1673733068576,1.691279,20893.0,20892.0,0.00813736]
[1673733068831,1.94078247,20893.0,20892.0,0.00813736]
[1673733069565,1.94678247,20893.0,20892.0,0.00813736]
[1673733069811,1.94078247,20893.0,20892.0,0.00813736]
[1673733070075,2.01078247,20893.0,20892.0,0.00813736]
[1673733072826,1.45231933,20893.0,20892.0,0.00813736]
[1673733073089,2.88059758,20893.0,20892.0,0.00732363]
[1673733074319,2.88059758,20893.0,20888.0,0.61226664]
[1673733074562,0.47681203,20892.0,20889.0,0.45889153]
[1673733074811,0.74564903,20892.0,20889.0,0.26816558]
[1673733075297,0.26698903,20892.0,20889.0,0.45889153]
[1673733075566,0.47960637,20893.0,20889.0,0.26816558]
[1673733075825,0.016,20892.0,20889.0,0.45889153]
[1673733076043,0.016,20892.0,20889.0,0.26816558]
[1673733076558,0.47960637,20893.0,20889.0,0.26816558]
[1673733076772,0.49560637,20893.0,20890.0,0.00070937]
[1673733077272,0.49560637,20893.0,20889.0,0.95641849]
[1673733077534,0.49560637,20893.0,20889.0,0.76569254]
[1673733077796,0.47960637,20893.0,20889.0,0.76569254]
[1673733078052,0.016,20892.0,20889.0,0.76569254]
[1673733078316,0.47960637,20893.0,20889.0,0.76569254]
[1673733078565,0.478653,20892.0,20889.0,0.28697354]
[1673733079531,0.82920043,20893.0,20889.0,0.28697354]
[1673733079795,0.82920043,20893.0,20889.0,0.47769949]
[1673733079796,0.478656,20892.0,20889.0,0.47769949]
[1673733080054,0.478656,20892.0,20889.0,0.28697354]
[1673733080300,0.478656,20892.0,20889.0,0.76569354]
[1673733080558,0.478656,20892.0,20890.0,0.1138]
[1673733080802,0.494656,20892.0,20890.0,0.1138]
[1673733081492,0.478656,20892.0,20890.0,0.1138]
[1673733081744,0.490656,20892.0,20890.0,0.1138]
[1673733081995,0.490656,20892.0,20891.0,0.32585744]
[1673733083055,0.490656,20892.0,20891.0,0.52191163]
[1673733083056,0.012,20892.0,20891.0,0.52191163]
[1673733083308,0.012,20892.0,20891.0,1.30835]
[1673733083571,0.29367286,20896.0,20891.0,1.61952059]
[1673733083844,0.006,20892.0,20891.0,1.27702059]
[1673733084096,0.006,20892.0,20891.0,1.50512059]
[1673733084584,0.32753705,20895.0,20891.0,1.50512059]
[1673733084836,0.32753705,20895.0,20893.0,0.1145]
[1673733085343,0.33449504,20894.0,20893.0,0.1145]
[1673733085589,0.31064793,20892.0,20889.0,0.40227306]
[1673733085857,0.3,20891.0,20889.0,0.40227306]
[1673733086102,0.957366,20891.0,20890.0,0.00070937]
[1673733086366,0.957366,20891.0,20889.0,0.40227306]
[1673733086865,0.957366,20891.0,20889.0,0.1138]
[1673733087354,0.32944691,20890.0,20889.0,0.1138]
[1673733087604,0.80814391,20890.0,20889.0,0.1138]
[1673733088351,0.80814391,20890.0,20889.0,0.1145094]
[1673733088846,0.81414391,20890.0,20889.0,0.1138]
[1673733091380,0.006,20890.0,20889.0,0.1138]
[1673733092389,0.006,20890.0,20888.0,0.2563819]
[1673733093909,0.71746924,20891.0,20888.0,0.2563819]
[1673733094169,0.490698,20890.0,20888.0,0.2563819]
[1673733094919,0.478698,20890.0,20888.0,0.2563819]
[1673733095289,0.478698,20890.0,20889.0,0.26221486]
[1673733095439,0.72947224,20891.0,20889.0,0.26221486]
[1673733095440,0.25077924,20891.0,20889.0,0.26221486]
[1673733095688,0.72947324,20891.0,20889.0,0.26221486]
[1673733096192,0.012,20890.0,20889.0,0.26221486]
[1673733096442,0.478697,20890.0,20889.0,0.26221486]
[1673733097228,1.19615224,20891.0,20889.0,0.26221486]
[1673733097499,0.006,20890.0,20889.0,0.26221486]
[1673733098013,0.23889598,20891.0,20889.0,0.26221486]
[1673733098275,0.478697,20890.0,20889.0,0.26221486]
[1673733098749,0.49320631,20890.0,20889.0,0.26221486]
[1673733099506,0.02050931,20890.0,20889.0,0.26221486]
[1673733101670,0.49932305,20890.0,20889.0,0.26221486]
[1673733101921,0.49920631,20890.0,20889.0,0.26221486]
[1673733102803,0.49932305,20890.0,20888.0,0.00846664]
[1673733103055,0.49932305,20890.0,20888.0,0.2929908]
[1673733103056,0.49920631,20890.0,20888.0,0.2929908]
[1673733103483,0.97790331,20890.0,20888.0,0.2929908]
[1673733103709,0.97190331,20890.0,20888.0,0.2929908]
[1673733104571,0.50520631,20890.0,20888.0,0.2929908]
[1673733105787,0.50520631,20890.0,20889.0,0.5047597]
[1673733106022,0.02650931,20890.0,20889.0,0.5047597]
[1673733106759,0.01450931,20890.0,20889.0,0.5047597]
[1673733107245,0.01450931,20890.0,20889.0,0.2547597]
[1673733107715,0.02050931,20890.0,20889.0,0.2547597]
[1673733109198,0.02050931,20890.0,20889.0,0.7334797]
[1673733109453,0.02042573,20890.0,20889.0,0.84967761]
[1673733109690,0.02042573,20890.0,20889.0,3.71105756]
[1673733109925,0.02042573,20890.0,20889.0,3.85239277]
[1673733110174,0.02042573,20890.0,20889.0,3.56944028]
[1673733110435,0.02042573,20890.0,20889.0,3.68334028]
[1673733110679,0.01442573,20890.0,20889.0,3.68334028]
[1673733110927,0.02842573,20890.0,20889.0,3.98207146]
[1673733111181,0.01442573,20890.0,20889.0,3.97007146]
[1673733111421,0.02742573,20890.0,20889.0,3.98207146]
[1673733112145,0.02742573,20890.0,20889.0,3.98278086]
[1673733112375,0.02742573,20890.0,20889.0,3.62830399]
[1673733112622,0.02742573,20890.0,20889.0,3.84330823]
[1673733113131,0.02742573,20890.0,20889.0,3.89220341]
[1673733114399,0.02742573,20890.0,20889.0,3.89236683]
[1673733114588,0.02742573,20890.0,20889.0,3.42933478]
[1673733114829,0.02742573,20890.0,20889.0,2.25677576]
[1673733115339,0.0101731,20890.0,20889.0,2.25677576]
[1673733115831,0.73894195,20893.0,20889.0,2.24477576]
[1673733116071,0.73894195,20893.0,20891.0,0.1145]
[1673733116301,0.26031195,20893.0,20891.0,0.1145]
[1673733117005,0.73905769,20893.0,20891.0,0.1145]
[1673733117266,0.75294095,20893.0,20891.0,0.1285]
[1673733118845,0.75294095,20893.0,20891.0,0.3809452]
[1673733119835,0.75294095,20893.0,20891.0,0.38165453]
[1673733120504,0.27610713,20892.0,20891.0,0.014]
[1673733120649,1.23341113,20892.0,20891.0,0.014]
[1673733121756,1.23341113,20892.0,20889.0,1.11364292]
[1673733122019,1.24841113,20892.0,20891.0,0.014]
[1673733122955,1.23341113,20892.0,20889.0,0.869804]
[1673733123197,1.23341113,20892.0,20889.0,0.855804]
[1673733123756,1.24841113,20892.0,20889.0,0.855804]
[1673733124231,1.26241113,20892.0,20889.0,0.869804]
[1673733124735,1.40555912,20892.0,20889.0,0.6136]
[1673733124969,1.26241113,20892.0,20889.0,0.6136]
[1673733125225,0.3,20891.0,20889.0,0.014]
[1673733125469,1.504915,20890.0,20889.0,0.014]
[1673733125716,1.66406199,20890.0,20889.0,0.014]
[1673733125975,1.98388299,20890.0,20889.0,0.014]
[1673733126236,1.87877222,20890.0,20889.0,0.014]
[1673733126479,2.02192986,20890.0,20888.0,0.00846664]
[1673733126726,1.92182986,20890.0,20889.0,0.013]
[1673733126973,1.92182986,20890.0,20888.0,0.00846664]
[1673733126974,1.23575345,20889.0,20888.0,0.00846664]
[1673733127218,1.49269342,20889.0,20888.0,0.00846664]
[1673733127465,1.49281016,20889.0,20888.0,0.00846664]
[1673733127717,1.64967019,20889.0,20888.0,0.01646664]
[1673733127964,1.34967019,20889.0,20888.0,0.01646664]
[1673733128177,1.35467019,20889.0,20888.0,0.02446664]
[1673733128425,1.65467019,20889.0,20888.0,0.02446664]
[1673733128672,1.83931771,20889.0,20888.0,0.02446664]
[1673733128925,2.09700656,20889.0,20888.0,0.02446664]
[1673733129178,1.83931771,20889.0,20888.0,0.02446664]
[1673733129423,2.30655053,20889.0,20888.0,0.02446664]
[1673733129653,2.0918403,20889.0,20888.0,0.02446664]
[1673733129908,1.7720193,20889.0,20888.0,0.02446664]
[1673733130147,1.62887933,20889.0,20888.0,0.02446664]
[1673733130397,1.94870033,20889.0,20888.0,0.02446664]
[1673733130633,2.10759933,20889.0,20888.0,0.02446664]
[1673733130884,2.2507393,20889.0,20888.0,0.02446664]
[1673733131117,2.5705603,20889.0,20888.0,0.02446664]
[1673733132630,2.43163771,20889.0,20888.0,0.02446664]
[1673733132890,2.64634794,20889.0,20888.0,0.02446664]
[1673733133126,2.43163771,20889.0,20888.0,0.02446664]
[1673733133370,2.64634794,20889.0,20888.0,0.02446664]
[1673733134121,2.43163771,20889.0,20888.0,0.02446664]
[1673733135663,2.69787722,20889.0,20888.0,0.02446664]
[1673733135905,2.55473725,20889.0,20888.0,0.02446664]
[1673733136871,2.76569943,20889.0,20888.0,0.02446664]
[1673733137104,2.9088394,20889.0,20888.0,0.02446664]
[1673733137628,2.98040966,20889.0,20888.0,0.02446664]
[1673733138121,3.26671529,20889.0,20888.0,0.02446664]
[1673733138363,3.38121529,20889.0,20888.0,0.02446664]
[1673733138871,3.23783317,20889.0,20888.0,0.02446664]
[1673733139124,3.23782671,20889.0,20888.0,0.02436208]
[1673733139614,3.09490966,20889.0,20888.0,0.02436208]
[1673733139861,3.08893766,20889.0,20888.0,0.02436208]
[1673733140101,3.33302652,20889.0,20888.0,0.02436208]
[1673733140345,3.23177405,20889.0,20888.0,0.02436208]
[1673733140828,3.48932414,20889.0,20888.0,0.02436208]
[1673733141038,3.23177405,20889.0,20888.0,0.02436208]
[1673733141361,3.08893766,20889.0,20888.0,0.02436208]
[1673733141608,3.51786874,20889.0,20888.0,0.02436208]
[1673733142540,3.30315851,20889.0,20888.0,0.02436208]
[1673733143050,3.28340403,20889.0,20888.0,0.02436208]
[1673733143549,3.49811426,20889.0,20888.0,0.02436208]
[1673733143841,2.13603404,20889.0,20888.0,0.02436208]
[1673733144098,1.81621304,20889.0,20888.0,0.02436208]
[1673733144349,1.33749304,20889.0,20888.0,0.02436208]
[1673733146460,1.3373763,20889.0,20888.0,0.02436208]
[1673733147677,1.6373763,20889.0,20888.0,0.02436208]
[1673733149937,1.65731404,20889.0,20888.0,0.02436208]
[1673733150187,1.63749304,20889.0,20888.0,0.02436208]
[1673733150439,1.80008234,20889.0,20888.0,0.02436208]
[1673733150944,1.78026134,20889.0,20888.0,0.02436208]
[1673733151466,1.63749304,20889.0,20888.0,0.02436208]
[1673733151716,1.78026134,20889.0,20888.0,0.02436208]
[1673733152457,2.31479257,20889.0,20888.0,0.02436208]
[1673733152777,2.4583299,20889.0,20888.0,0.02436208]
[1673733153210,2.4941499,20889.0,20888.0,0.02436208]
[1673733153722,2.68656427,20889.0,20888.0,0.02436208]
[1673733154494,2.9728699,20889.0,20888.0,0.02436208]
[1673733155495,2.82944051,20889.0,20888.0,0.02436208]
[1673733155746,2.68644753,20889.0,20888.0,0.02436208]
[1673733156255,2.97275316,20889.0,20888.0,0.02436208]
[1673733156546,3.235188,20889.0,20888.0,0.02436208]
[1673733158461,3.23518234,20889.0,20888.0,0.02436208]
[1673733158702,2.91536134,20889.0,20888.0,0.02436208]
[1673733158958,3.23529908,20889.0,20888.0,0.02436208]
[1673733159215,2.94899911,20889.0,20888.0,0.02436208]
[1673733159471,2.83900111,20889.0,20888.0,0.02436208]
[1673733159717,3.12529347,20889.0,20888.0,0.02436208]
[1673733159962,3.23529147,20889.0,20888.0,0.02436208]
[1673733160741,2.91547047,20889.0,20888.0,0.02436208]
[1673733160979,2.94899911,20889.0,20888.0,0.02436208]
[1673733161314,3.23523718,20889.0,20888.0,0.02436208]
[1673733161559,2.57769915,20889.0,20888.0,0.02436208]
[1673733161825,2.87769383,20889.0,20888.0,0.02436208]
[1673733162063,2.75809211,20889.0,20888.0,0.02436208]
[1673733162308,2.72227211,20889.0,20888.0,0.02426855]
[1673733162561,2.84185574,20889.0,20888.0,0.02426855]
[1673733162806,2.42227211,20889.0,20888.0,0.02426855]
[1673733163057,2.31701044,20889.0,20888.0,0.02426855]
[1673733164006,2.58010348,20889.0,20888.0,0.02426855]
[1673733164803,2.59365049,20889.0,20888.0,0.02426855]
[1673733165050,2.61158049,20889.0,20888.0,0.02426855]
[1673733165565,2.59365049,20889.0,20888.0,0.02426855]
[1673733166014,2.29365049,20889.0,20888.0,0.02426855]
[1673733166525,2.29376723,20889.0,20888.0,0.02426855]
[1673733166788,2.59376723,20889.0,20888.0,0.02426855]
[1673733167015,2.29376723,20889.0,20888.0,0.02426855]
[1673733167258,2.23588519,20889.0,20888.0,0.02426855]
[1673733167494,2.55570619,20889.0,20888.0,0.02426855]
[1673733168233,2.59152619,20889.0,20888.0,0.02426855]
[1673733168960,3.02089406,20889.0,20888.0,0.02426855]
[1673733171450,2.59152619,20889.0,20888.0,0.02426855]
[1673733172644,2.27170519,20889.0,20888.0,0.02426855]
[1673733172893,2.27158845,20889.0,20888.0,0.02426855]
[1673733174824,3.02077732,20889.0,20888.0,0.02426855]
[1673733175057,2.59140945,20889.0,20888.0,0.02426855]
[1673733175539,2.70095632,20889.0,20888.0,0.02426855]
[1673733176271,2.27158845,20889.0,20888.0,0.02426855]
[1673733176504,2.58657306,20889.0,20888.0,0.02426855]
[1673733176739,2.15720519,20889.0,20888.0,0.02426855]
[1673733176987,2.12138519,20889.0,20888.0,0.02426855]
[1673733177460,2.55075306,20889.0,20888.0,0.02426855]
[1673733177717,2.87057406,20889.0,20888.0,0.02426855]
[1673733178228,2.90639406,20889.0,20888.0,0.02426855]
[1673733179197,2.63998576,20889.0,20888.0,0.02426855]
[1673733179656,4.57266951,20889.0,20887.0,0.00052125]
[1673733179913,1.84054818,20888.0,20887.0,0.00052125]
[1673733180159,3.03246201,20888.0,20887.0,0.00052125]
[1673733180413,5.22316418,20888.0,20887.0,0.00052125]
[1673733180668,0.00027523,20886.0,20884.0,0.01192415]
[1673733180932,1.17504269,20885.0,20884.0,0.01192415]
[1673733181184,3.89363625,20885.0,20884.0,0.01192415]
[1673733181714,4.61674909,20885.0,20884.0,0.01192415]
[1673733182487,4.75274909,20885.0,20884.0,0.01192415]
[1673733183511,4.93301441,20885.0,20884.0,0.01192415]
[1673733184597,4.93313115,20885.0,20884.0,0.01192415]
[1673733185322,4.02975299,20885.0,20884.0,0.01192415]
[1673733185835,4.45932037,20885.0,20884.0,0.01192415]
[1673733186077,4.03031178,20885.0,20884.0,0.01192415]
[1673733187173,4.45932037,20885.0,20884.0,0.01192415]
[1673733187647,4.03031178,20885.0,20884.0,0.01192415]
[1673733187895,4.93342254,20885.0,20884.0,0.01192415]
[1673733188383,4.79742254,20885.0,20884.0,0.01192415]
[1673733188611,4.50441395,20885.0,20884.0,0.01192415]
[1673733189606,4.03031178,20885.0,20884.0,0.01192415]
[1673733190403,4.03031178,20885.0,20884.0,0.00747069]
[1673733190641,4.45932037,20885.0,20884.0,0.00747069]
[1673733191160,4.32332037,20885.0,20884.0,0.00747069]
[1673733191395,4.45932037,20885.0,20884.0,0.00747069]
[1673733191677,4.79742254,20885.0,20884.0,0.00747069]
[1673733191933,4.93342254,20885.0,20884.0,0.00747069]
[1673733192192,4.79742254,20885.0,20884.0,0.00747069]
[1673733192448,4.50441395,20885.0,20884.0,0.00747069]
[1673733192708,4.93342254,20885.0,20884.0,0.00747069]
[1673733193192,4.50441395,20885.0,20884.0,0.00747069]
[1673733193443,4.45932037,20885.0,20884.0,0.00747069]
[1673733193677,4.03031178,20885.0,20884.0,0.00747069]
[1673733194456,4.45932037,20885.0,20884.0,0.00747069]
[1673733194762,4.50932153,20885.0,20884.0,0.00747069]
[1673733194971,4.47350153,20885.0,20884.0,0.00747069]
[1673733195190,4.51859511,20885.0,20884.0,0.00747069]
[1673733196407,4.9834437,20885.0,20884.0,0.00747069]
[1673733196891,5.25443512,20885.0,20884.0,0.00747069]
[1673733198615,6.37064371,20885.0,20884.0,0.00747069]
[1673733198871,6.37064371,20885.0,20883.0,0.00762713]
[1673733198872,0.1,20884.0,20883.0,0.00762713]
[1673733199126,3.64580332,20884.0,20883.0,0.00762713]
[1673733199375,4.11990549,20884.0,20883.0,0.00438224]
[1673733199640,3.64580332,20884.0,20883.0,0.00438224]
[1673733199891,3.68164332,20884.0,20883.0,0.00438224]
[1673733200138,4.38164333,20884.0,20883.0,0.00438224]
[1673733200375,4.38164333,20884.0,20883.0,0.00278177]
[1673733200618,4.8557455,20884.0,20883.0,0.00278177]
[1673733201114,0.1,20883.0,20882.0,0.01222433]
[1673733201377,2.15912334,20883.0,20882.0,0.01222433]
[1673733201624,3.74765618,20883.0,20882.0,0.01222433]
[1673733201843,4.22305835,20883.0,20882.0,3.3e-07]
[1673733202379,0.1,20882.0,20879.0,0.01259819]
[1673733202621,4.83573356,20881.0,20879.0,0.01259819]
[1673733202862,4.83572354,20881.0,20879.0,0.01259819]
[1673733203100,5.30973104,20881.0,20879.0,0.01259819]
[1673733203343,5.30973236,20881.0,20880.0,1.8e-07]
[1673733203616,5.02490591,20881.0,20880.0,1.8e-07]
[1673733203856,4.66874364,20881.0,20880.0,1.8e-07]
[1673733204109,4.80474364,20881.0,20880.0,1.8e-07]
[1673733204809,5.50474365,20881.0,20880.0,1.8e-07]
[1673733205305,5.93241428,20881.0,20880.0,1.8e-07]
[1673733205552,6.23241428,20881.0,20880.0,1.8e-07]
[1673733205798,5.66874365,20881.0,20880.0,1.8e-07]
[1673733206052,0.1,20880.0,20875.0,0.01333572]
[1673733206325,1.89744642,20876.0,20875.0,0.01333572]
[1673733206563,2.90138153,20876.0,20875.0,0.01333572]
[1673733206822,2.47789569,20876.0,20875.0,0.01333572]
[1673733207095,2.79783343,20876.0,20875.0,0.01333572]
[1673733207613,2.93383343,20876.0,20875.0,0.01333572]
[1673733208101,3.2010372,20876.0,20875.0,0.01333572]
[1673733209404,3.0867372,20876.0,20875.0,0.01333572]
[1673733210173,3.40678092,20876.0,20875.0,0.01333572]
[1673733210456,3.13957715,20876.0,20875.0,0.01333572]
[1673733210744,3.39884112,20876.0,20875.0,0.01333572]
[1673733210989,3.87785912,20876.0,20875.0,0.01333572]
[1673733211249,3.14524863,20876.0,20875.0,0.01333572]
[1673733212542,2.81953343,20876.0,20875.0,0.01333572]
[1673733212782,3.0982936,20876.0,20875.0,0.01333572]
[1673733213035,3.10169746,20876.0,20875.0,0.01333572]
[1673733215048,1.44981374,20876.0,20875.0,0.20406167]
[1673733215303,0.136,20876.0,20875.0,0.37175896]
[1673733215791,1.91563656,20876.0,20875.0,0.01333572]
[1673733216035,2.23545756,20876.0,20875.0,0.01333572]
[1673733216282,2.12545956,20876.0,20875.0,0.01333572]
[1673733216747,2.23545756,20876.0,20875.0,0.01333572]
[1673733217047,2.21563656,20876.0,20875.0,0.01333572]
[1673733217310,2.53545756,20876.0,20875.0,0.01333572]
[1673733217554,2.42545956,20876.0,20875.0,0.01333572]
[1673733217808,2.32923656,20876.0,20875.0,0.01333572]
[1673733218046,2.64405756,20876.0,20875.0,0.01333572]
[1673733218311,2.60821756,20876.0,20875.0,0.01333572]
[1673733218569,2.49821956,20876.0,20875.0,0.01333572]
[1673733218840,2.2885133,20876.0,20875.0,0.01333572]
[1673733219134,2.6083343,20876.0,20875.0,0.01333572]
[1673733219373,2.4983363,20876.0,20875.0,0.01333572]
[1673733219597,2.6083343,20876.0,20875.0,0.01333572]
[1673733219850,2.4983363,20876.0,20875.0,0.01333572]
[1673733220099,2.6083343,20876.0,20875.0,0.01333572]
[1673733220353,2.2885133,20876.0,20875.0,0.01333572]
[1673733220565,2.6083343,20876.0,20875.0,0.01333572]
[1673733220855,2.4983363,20876.0,20875.0,0.01333572]
[1673733221350,1.9885133,20876.0,20875.0,0.01333572]
[1673733221864,1.98839656,20876.0,20875.0,0.01333572]
[1673733222138,1.9885133,20876.0,20875.0,0.01333572]
[1673733222890,1.87479656,20876.0,20875.0,0.01333572]
[1673733223412,0.43955887,20876.0,20875.0,0.01333572]
[1673733223664,2.3497558,20876.0,20875.0,0.01333572]
[1673733223934,2.85611743,20876.0,20870.0,0.69274547]
[1673733224174,0.17851483,20871.0,20866.0,0.0158156]
[1673733224436,1.96932088,20870.0,20866.0,0.27860585]
[1673733224694,1.53263899,20870.0,20868.0,0.25821492]
[1673733224952,0.6217823,20872.0,20871.0,0.30707647]
[1673733225283,0.1426603,20873.0,20871.0,0.30707647]
[1673733225501,0.03584,20873.0,20871.0,0.30707647]
[1673733225740,0.9575923,20873.0,20871.0,0.30707647]
[1673733225994,0.9575923,20873.0,20870.0,0.618]
[1673733225995,0.1426603,20872.0,20870.0,0.618]
[1673733226249,0.1426603,20872.0,20870.0,0.88368202]
[1673733226500,0.10315674,20871.0,20870.0,0.618]
[1673733226757,1.62881902,20871.0,20870.0,0.618]
[1673733227004,1.77147932,20871.0,20870.0,0.618]
[1673733227251,2.47687333,20871.0,20870.0,0.618]
[1673733227501,2.35018866,20871.0,20870.0,0.618]
[1673733227789,2.35018866,20871.0,20869.0,0.97072112]
[1673733227790,3.03003378,20871.0,20869.0,0.97072112]
[1673733228039,1.30053701,20870.0,20869.0,0.97072112]